Cogmind - Beta 15 @@@ ROGUE MODE // 2025.07.19 @ 23:42:42 Player: Singularius Result: Destroyed by Y-54 Guardian with Gatling Laser Performance ------------- Evolutions (0) 0 Regions Visited (3) 600 Robots Destroyed (31) 155 Value Destroyed (764) 764 Prototype IDs (0) 0 Alien Tech Used (0) 0 Bonus (0) 0 TOTAL SCORE: 1519 Bonus ------- None Cogmind --------- Core Integrity 0/250 Matter 300/300 Energy 250/250 System Corruption 0% Temperature Cool (12) Movement Walking (195) Ox1 Location -7/Recycling Parts ------- > --- POWER (1) -------- Ion Engine > --- PROPULSION (2) --- Aluminum Leg Improved Titanium Leg > --- UTILITY (2) ------ Large Storage Unit Improved Melee Analysis Suite > --- WEAPON (2) ------- Chainsword Chainsword > --- INVENTORY (15) --- Light Ion Engine Aluminum Leg Aluminum Leg Sensor Array Signal Interpreter Seismic Detector Targeting Computer Actuator Array Improved Light Armor Plating Gatling Laser Subdweller Beam Cannon Assault Rifle Light Assault Rifle Grenade Launcher Mining Laser Peak State ------------ > --- POWER ------------ Ion Engine > --- PROPULSION ------- Aluminum Leg Improved Titanium Leg > --- UTILITY ---------- Large Storage Unit Improved Melee Analysis Suite > --- WEAPON ----------- Chainsword Chainsword > --- INVENTORY -------- Light Ion Engine Aluminum Leg Aluminum Leg Sensor Array Signal Interpreter Seismic Detector Targeting Computer Improved Light Armor Plating Gatling Laser Subdweller Beam Cannon Assault Rifle Assault Rifle Light Assault Rifle Grenade Launcher Mining Laser [Rating: 21] Favorites ----------- Power Ion Engine Engine Ion Engine Propulsion Light Treads Treads Light Treads Leg Aluminum Leg Utility Seismic Detector Device Seismic Detector Storage Large Storage Unit Processor Improved Melee Analysis Suite Protection Light Armor Plating Weapon Assault Rifle Energy Gun Small Laser Energy Cannon Subdweller Beam Cannon Ballistic Gun Assault Rifle Launcher Grenade Launcher Special Weapon Mining Laser Slashing Weapon Chainsword Build | -11 -10 -10 -7 ------- Run | Yrd Mat Sub Rec Slots Evolved . | . . . . Power . | . . . . Propulsion . | . . . . Utility . | . . . . Weapon . | . . . . Parts Attached 22 | 7 4 7 4 Power 3 | 1 1 1 . Engine 3 | 1 1 1 . Core . | . . . . Reactor . | . . . . Propulsion 6 | 2 1 2 1 Treads 3 | 2 1 . . Leg 3 | . . 2 1 Wheel . | . . . . Hover . | . . . . Flight . | . . . . Utility 6 | 2 1 2 1 Device 1 | 1 . . . Storage 3 | 1 1 1 . Processor 1 | . . . 1 Hackware . | . . . . Protection 1 | . . 1 . Artifact . | . . . . Weapon 7 | 2 1 2 2 Energy Gun 1 | 1 . . . Energy Cannon 1 | . . 1 . Ballistic Gun 1 | 1 . . . Ballistic Cannon . | . . . . Launcher 1 | . . 1 . Special Weapon 1 | . 1 . . Impact Weapon . | . . . . Slashing Weapon 2 | . . . 2 Piercing Weapon . | . . . . Special Melee Weapon . | . . . . Unidentified Prototypes . | . . . . Parts Lost 4 | . 1 3 . Power 2 | . 1 1 . Propulsion 2 | . . 2 . Utility . | . . . . Weapon . | . . . . Highest Loss Streak 3 | . 1 3 . To Critical Strikes . | . . . . Average Backups 11 | 2 10 14 13 Power 1 | . 1 1 1 Propulsion 3 | 1 3 3 2 Utility 2 | . 1 4 4 Weapon 4 | . 3 5 6 Tool/Special . | . . . . Unused Backups 13 | . 2 . 11 Power 2 | . 1 . 1 Propulsion 2 | . . . 2 Utility 4 | . . . 4 Weapon 5 | . 1 . 4 Tool/Special . | . . . . Average Slot Usage (%) 99 | . 99 99 100 Engine 13 | . 13 13 14 Treads 23 | . 28 23 . Leg 4 | . . 4 28 Device 12 | . 14 12 8 Storage 14 | . 14 14 14 Energy Gun 11 | . 13 11 . Energy Cannon 1 | . . 2 8 Ballistic Gun 13 | . 14 12 11 Slashing Weapon 1 | . . . 9 Peak Build Rating 21 | 7 8 9 21 Average Rating 8 | 5 7 8 13 On Entrance 6 | . 7 8 9 Naked Turns . | . . . . Heaviest Build 37 | 12 29 37 36 Greatest Support 40 | 40 40 40 30 Greatest Overweight (x) 1 | . . 1 1 Average Overweight (x) . | . . . . Largest Inventory Capacity 15 | 8 15 15 15 Average Capacity 13 | 7 13 15 15 Most Carried 15 | 4 15 15 15 Average Carried 11 | 2 10 14 13 Final Capacity 15 | 8 15 15 15 Final Carried 15 | 4 15 12 15 Class Distribution -------------------- 96% | Mutant 3% | Gladiator Dominant Class ---------------- Mutant | -10/Materials Mutant | -10/Subcaves Mutant | -7/Recycling Resources | -11 -10 -10 -7 ----------- Run | Yrd Mat Sub Rec Matter Collected 736 | 249 201 232 54 Remotely . | . . . . Salvage Created 869 | 38 593 171 67 Parts 69 | 9 44 12 4 Haulers Intercepted 1 | . 1 . . Recyclers Shooed . | . . . . Parts Field Recycled . | . . . . Retrieved Matter . | . . . . Parts Self-Destructed 8 | . . 8 . Prevented . | . . . . Kills | -11 -10 -10 -7 ------- Run | Yrd Mat Sub Rec Combat Hostiles Destroyed 24 | . 16 7 1 Melee 1 | . . . 1 Guns 20 | . 16 4 . AOE 3 | . . 3 . Classes Destroyed 9 | 1 5 2 1 Builder 1 | . 1 . . Tunneler 2 | 2 . . . Hauler 1 | . 1 . . Turret 2 | . . 2 . Watcher 1 | . 1 . . Swarmer 9 | . 6 3 . Grunt 10 | . 10 . . Sentry 1 | . . . 1 Subdweller 4 | . . 4 . Best Kill Streak 4 | 2 4 3 1 Combat Bots Only 3 | . 3 3 1 Max Kills in Single Turn 3 | 1 2 3 1 Gunslinging . | . . . . Exploded 3 | . . 3 . Melee 1 | . . . 1 Uniques/NPCs Destroyed . | . . . . Combat | -11 -10 -10 -7 -------- Run | Yrd Mat Sub Rec Hostile Shots Fired 198 | . 58 122 18 Missed 71 | . 15 52 4 Hits 127 | . 43 70 14 Projectile 127 | . 43 70 14 AOE 1 | . . 1 . Damage Taken 1280 | . 434 709 137 Core 255 | . 81 102 72 Absorbed by Shields . | . . . . Core Remaining (%) 100 | 100 . . . Volleys Fired 69 | 2 45 22 . Largest 2 | 2 2 2 . Hottest 110 | 60 100 110 . Shots Fired 128 | 4 88 36 . Gun 114 | 4 86 24 . Cannon 2 | . . 2 . Launcher 10 | . . 10 . Special 2 | . 2 . . Kinetic 57 | 2 43 12 . Thermal 61 | 2 45 14 . Explosive 10 | . . 10 . Electromagnetic . | . . . . Robot Hit Streak 25 | 2 14 25 . Robot Miss Streak 2 | . 2 1 . Penetration Max . | . . . . Secondary Targets 3 | . 2 1 . Max Gunslinging Chain 1 | . 1 1 . Shots Hit Robots 98 | 2 64 27 5 Core Hits 58 | 2 31 23 2 Critical Kills . | . . . . Critical Parts Destroyed . | . . . . Critical Strikes 2 | . . . 2 Sever 2 | . . . 2 Melee Attacks 5 | . . . 5 Impact . | . . . . Slashing 5 | . . . 5 Piercing . | . . . . Sneak Attacks 1 | . . . 1 Combat Hostiles 1 | . . . 1 Follow-up Attacks . | . . . . Damage Inflicted 1627 | 24 757 623 223 Guns 1035 | 24 757 254 . Cannons . | . . . . Explosions 369 | . . 369 . Melee 223 | . . . 223 Ramming . | . . . . Kinetic 498 | . 374 124 . Thermal 537 | 24 383 130 . Explosive 369 | . . 369 . Electromagnetic . | . . . . Impact . | . . . . Slashing 223 | . . . 223 Piercing . | . . . . Highest Corruption . | . . . . Average Corruption . | . . . . Corruption Purged . | . . . . Corruption Blocked . | . . . . Overload Shots . | . . . . Overflow Damage 16 | . . 16 . Projectiles . | . . . . Explosions 16 | . . 16 . Melee . | . . . . Knockbacks . | . . . . Impact . | . . . . Kinetic . | . . . . Secondary . | . . . . Self-Inflicted Damage . | . . . . Shots . | . . . . Rammed . | . . . . Targets Rammed . | . . . . Kicked . | . . . . Crushed . | . . . . Highest Temperature 51 | . 51 20 . Average Temperature 22 | . 23 14 . Received Heat Transfer 633 | . 183 384 66 Siege Activations . | . . . . Martial Activations . | . . . . Shielding Activations . | . . . . Robots Disrupted . | . . . . Combat Hostiles . | . . . . Robots Corrupted . | . . . . Combat Hostiles . | . . . . Parts Fried . | . . . . Impact Corruptions . | . . . . Robots Melted . | . . . . Combat Hostiles . | . . . . Parts Melted 1 | . . 1 . Heat Transferred 1225 | 50 875 300 . Parts Sabotaged . | . . . . Parts Stolen . | . . . . Parts Stripped . | . . . . Power Chain Reactions . | . . . . Alert | -11 -10 -10 -7 ------- Run | Yrd Mat Sub Rec Maximum Alert Level . | . . . . Low Security (%) 100 | 100 100 . 100 Level 1 . | . . . . Level 2 . | . . . . Level 3 . | . . . . Level 4 . | . . . . Level 5 . | . . . . High Security . | . . . . Max Security . | . . . . Peak Influence 106 | 10 106 . 24 Initial 24 | . . . 24 Average 26 | 1 32 . 6 Influence Increases 638 | 10 464 130 34 Destroy 0b10 Robot/C 440 | . 320 100 20 Destroy 0b10 Robot/NC 25 | 10 15 . . Destroy Leader 74 | . 74 . . Successful Hack 23 | . 9 . 14 Disable Machine 15 | . 15 . . Destroy Structure 1 | . 1 . . Lose Combat Pursuer 60 | . 30 30 . Influence Decreases 638 | 10 372 170 86 Entered New Map 73 | . . 45 28 Time Decay 525 | 10 362 95 58 Lost Part 40 | . 10 30 . Squads Dispatched 4 | . 4 . . Investigation . | . . . . Extermination . | . . . . Reinforcement 4 | . 4 . . Assault . | . . . . Garrison . | . . . . Intercept . | . . . . Searches Triggered . | . . . . Construction Impeded . | . . . . Haulers Reinforced . | . . . . Active Scanning Responses . | . . . . Cargo Convoy Interrupts . | . . . . Stealth | -11 -10 -10 -7 --------- Run | Yrd Mat Sub Rec Distress Signals 1 | . 1 . . Communications Jammed . | . . . . Distress Signals . | . . . . Times Spotted 38 | . 24 11 3 Peak Tracking Total 5 | . 4 5 1 Tactical Retreats 2 | . 1 1 . Traps | -11 -10 -10 -7 ------- Run | Yrd Mat Sub Rec Traps Triggered . | . . . . Indirectly . | . . . . Trap Hack Attempts . | . . . . Triggered . | . . . . Disarmed . | . . . . Reprogrammed . | . . . . Reused . | . . . . Traps Extracted . | . . . . Installed . | . . . . Triggered . | . . . . Machines | -11 -10 -10 -7 ---------- Run | Yrd Mat Sub Rec Machines Disabled 4 | . 1 3 . Max in Single Turn 2 | . 1 2 . Machines Repaired . | . . . . Machines Dismantled . | . . . . Machines Sabotaged . | . . . . Overloaded Fab Kills . | . . . . Hacking | -11 -10 -10 -7 --------- Run | Yrd Mat Sub Rec Machines Accessed 5 | . 3 . 2 Terminals 3 | . 2 . 1 Fabricators . | . . . . Repair Stations . | . . . . Recycling Units 2 | . 1 . 1 Scanalyzers . | . . . . Garrison Access . | . . . . Total Hacks 10 | . 7 . 3 Successful 8 | . 6 . 2 Failed 2 | . 1 . 1 Catastrophic . | . . . . Database Lockouts . | . . . . Manual 2 | . 1 . 1 Terminals 8 | . 6 . 2 Fabricators . | . . . . Repair Stations . | . . . . Recycling Units 2 | . 1 . 1 Scanalyzers . | . . . . Garrison Access . | . . . . Terminal Hacks 4 | . 4 . . Robot Analysis 2 | . 2 . . Locate Traps 1 | . 1 . . Zone Layout 1 | . 1 . . Fabricator Hacks . | . . . . Repair Station Hacks . | . . . . Recycling Unit Hacks 2 | . 1 . 1 Report Inventory 2 | . 1 . 1 Scanalyzer . | . . . . Garrison Access Hacks . | . . . . Unauthorized Hacks 2 | . 1 . 1 Terminals 2 | . 1 . 1 Botnet 2 | . 1 . 1 Fabricators . | . . . . Repair Stations . | . . . . Recycling Units . | . . . . Scanalyzers . | . . . . Garrison Access . | . . . . Data Cores Recovered . | . . . . Used . | . . . . Hacking Detections 4 | . 2 . 2 Full Trace Events . | . . . . Feedback Events . | . . . . Feedback Blocked . | . . . . Robot Schematics Acquired . | . . . . Robots Built . | . . . . Authchips . | . . . . Time . | . . . . Total Robot Build Rating . | . . . . Part Schematics Acquired . | . . . . Parts Built . | . . . . Authchips . | . . . . Time . | . . . . Total Part Build Rating . | . . . . Parts Repaired . | . . . . Time . | . . . . Parts Recycled . | . . . . Recycled Matter . | . . . . Retrieved Matter . | . . . . Retrieved Components . | . . . . Parts Scanalyzed . | . . . . Part Schematics Acquired . | . . . . Parts Damaged . | . . . . Bothacking | -11 -10 -10 -7 ------------ Run | Yrd Mat Sub Rec Used RIF Installer . | . . . . Robots Hacked . | . . . . Non-combat . | . . . . Combat . | . . . . Robot Hacks Applied . | . . . . Relay Couplers Released . | . . . . Fabnet Peak Effective % . | . . . . Robots Rewired . | . . . . Allies Hacked . | . . . . Hacks Repelled . | . . . . Allies | -11 -10 -10 -7 -------- Run | Yrd Mat Sub Rec Total Allies . | . . . . Largest Group . | . . . . Highest-Rated Group . | . . . . Highest-Rated Ally . | . . . . Total Orders . | . . . . Ally Attacks . | . . . . Total Damage . | . . . . Kills . | . . . . Allies Corrupted . | . . . . Allies Melted . | . . . . Intel | -11 -10 -10 -7 ------- Run | Yrd Mat Sub Rec Active Infowar (turns) 2189 | 14 1281 740 154 Seismic 2189 | 14 1281 740 154 Robot Analysis Total 2 | . 2 . . Derelict Logs Recovered . | . . . . Drone Launches . | . . . . Drone Recoveries . | . . . . Exploration | -11 -10 -10 -7 ------------- Run | Yrd Mat Sub Rec Turns Passed 2446 | 96 1281 795 274 Spaces Moved 1229 | 49 602 437 141 Core 3 | 3 . . . Treads 1033 | 46 602 385 . Legs 193 | . . 52 141 Wheels . | . . . . Hover . | . . . . Flight . | . . . . Fastest Speed 50 | 50 160 160 125 Average Speed 163 | 153 160 163 177 Slowest Speed 195 | 160 160 190 195 Overloaded Moves . | . . . . Propulsion Burnouts . | . . . . Robots Hopped . | . . . . Potential Cave-ins . | . . . . Cave-ins Triggered . | . . . . Exploration Rate (%) 40 | 5 90 32 36 Regions Visited 3 Branch Regions 2 Pre-discovered Areas 1 | . . 1 . Known Exits Taken . | . . . . Unknown Exits Taken 3 | 1 1 1 . Scrap Searched . | . . . . Spaces Dug . | . . . . Terrain Destroyed 24 | . . 24 . Melee . | . . . . Projectile . | . . . . AOE 24 | . . 24 . Terrain Rammed . | . . . . Walls Destroyed . | . . . . Machines Disabled . | . . . . Actions | -11 -10 -10 -7 --------- Run | Yrd Mat Sub Rec Total 1531 | 63 829 479 160 Wait 170 | 2 160 8 . Move 1226 | 48 601 436 141 Hop . | . . . . Pick Up 24 | 4 14 . 6 Fast Attach 8 | 7 . 1 . Attach 4 | . 1 3 . Detach . | . . . . Swap 15 | . 4 7 4 Drop 10 | . 4 2 4 Fire 69 | 2 45 22 . Melee 5 | . . . 5 Ram . | . . . . Kick . | . . . . Crush . | . . . . Escape Stasis . | . . . . Rewire . | . . . . Trap . | . . . . Miscellaneous . | . . . . Route ------- -11/Scrapyard -10/Materials (discovered 4 exits: [*Mat x2] / [*Min] / [*Sub]) -10/Subcaves -7/Recycling History --------- Turn | Location | Event 9 | -11/Scrapyard | Discovered new exit (range 15) 97 | -11/Scrapyard | Entered Materials 313 | -10/Materials | Build established: Mutant 452 | -10/Materials | Discovered new exit (range 6) 629 | -10/Materials | Discovered new exit (range 13) 1016 | -10/Materials | Discovered new exit (range 15) 1360 | -10/Materials | Discovered new exit (range 7) 1378 | -10/Materials | Entered Subcaves 1413 | -10/Subcaves | Learned location of Zion (-6) 1413 | -10/Subcaves | Met a Zionite searching for "candidates" 1424 | -10/Subcaves | A swath of the cavern ceiling suddenly collapsed 2056 | -10/Subcaves | Discovered new exit (range 15) 2068 | -10/Subcaves | Core integrity fell below 50% 2083 | -10/Subcaves | Lost 3 parts (1p2n) 2173 | -10/Subcaves | Entered Recycling 2353 | -7/Recycling | Core integrity fell below 20% 2447 | -7/Recycling | Destroyed by Y-54 Guardian with Gatling Laser Last Messages --------------- 02352_ R-06 Scavenger collects Aluminum Leg. 02356_ R-06 Scavenger collects Imp. Deuterium Engine. 02356_ Y-54 Guardian destroyed. 02359_ R-06 Scavenger collects Imp. Heat Sink. 02361_ Dropped Lgt. Armor Plating. 02361_ Acquired Imp. Light Armor Plating. 02362_ R-06 Scavenger collects Lgt. Armor Plating. 02362_ R-06 Scavenger collects Lgt. Treads. 02364_ Dropped Particle Gun. 02364_ Acquired Gatling Laser. 02365_ R-06 Scavenger collects Flak Gun. 02365_ R-06 Scavenger collects Particle Gun. 02421_ Dropped Assault Rifle. 02421_ Acquired Actuator Array. 02428_ Acquired 10 matter. 02430_ R-06 Scavenger collects Assault Rifle. 02446_ Sneak attack on Y-54 Guardian. 02447_ Y-54 Guardian springs to life. Map ----- +----------------------------------------------------+ | ??????????????????????????????????????? | | ??????????????????????????????????????? | | ??????????????????????????????????????? | | ??????????????????????????????????????? | | ??????????????????????????????????????? | | ??????????????????????????????????????? | | ??????????????????????????????????????? | | ??????????????????????????????????????? | | ??????????????????????????????????????? | | ??????????????????????????????????????? | | ??????????????????????????????????????? | | ?????????? ???????????????????????????? | | ?????????? ???????????????????????????? | | ??????????#r??????????????????????????? | | ??????????# ??????????????????????????? | | ??????????# ??????????????????????????? | | ??????????#r##+#??????????????????????? | | ??????????# ##?????????????????????? | | ??????????# !??????????????????????? | | ??????????# !??????????????????????? | | ??????????# !??????????????????????? | | ??????????# #??????????????????????? | | ??????????# ######Y#"Y"###?????????? | | ??????????# ????????? | | ??????????+ ????????? | | ??????????# @ ????????? | | ??????????### #Y#!!!###???????????????? | | ????????????# ###??????##?????????????? | | ????????????#+######??## #######??????? | | ????????????# #??# #?###### | | ????????????# %##?# #?#% | | ????????????# #?# #?# ! | | ????????????# ##?# #?# | | ????????????# #??# #?# % | | ????????????# #??# #?# | | ????????????#[ ##?# #?# | | ????????????# #?# #?# | | ????????????# ##?# #?# ! ! | | ???????????##/##+#########+#########+## | | ???????????# | | ???????????+ | | ???????????# % | | ???????????# #####+##+##### ##! !# | | ???????????# #???# ####!!!# | | ???????????# #???# #??##### | | ???????????# ##### #??????? | | ???????????# + #??????? | | ???????????# ##### #??????? | | ???????????# #???# #??????? | | ???????????# #???# #??????? | +----------------------------------------------------+ Best States ------------- Heat Dissipation 25 Energy Generation 10 Energy Capacity 250 Matter Stores 300 Matter Capacity 300 Sight Range 16 Terrain Scan Density 10 Armor Coverage 150 Evasion (%) 55 Melee Accuracy 6 Recoil Reduction 2 Item Schematics ----------------- None Robot Schematics ------------------ None Fabricated ------------ Nothing Repaired ---------- Nothing Alien Tech Used ----------------- None Achievements -------------- None Challenges ------------ None Game ------ Seed DisintegrationWeldingSpiker Manual? 0 Play Time 00:18:55 Cumulative 89.4 hours Start 2025.07.19 @ 23:22:15 End 2025.07.19 @ 23:42:42 Sessions 1 Manual Loads 0 Difficulty Rogue Special Mode None Game No. 63 Rogue 63 Adventurer 0 Explorer 0 Win Type - Total 0 Types 0/0/0/0/0/0/0/0/0/0 Lore% 43 Gallery% 37 Achievement% 32 Wizard Run 0 Options --------- Layout 1 ASCII 0 Keyboard 0 Movement Numpad Keybinds 0 Fullscreen 1 Font 24/Smallcaps Map View 50x35 Zoom Use 0% Tactical HUD 1 Map Filters NONE Filters NONE Steam 1 RUN: d99fe42c-1a28-43e2-9e6f-6391f7e4ec55